fUSD/lending_fUSD_20250608
["ID","MTS","AMOUNT","RATE_DAILY","PERIOD"]
[365032027,1749416939821,-500.0,0.00017889,2]
[365032028,1749416939848,-500.0,0.00017889,2]
[365032029,1749416939875,-500.0,0.00017889,2]
[365032030,1749416939902,-95.47328987,0.00017889,2]
[365032031,1749416939947,-151.0,0.00017868,2]
[365032032,1749416939973,-404.52671013,0.00017889,2]
[365032033,1749416940001,-500.0,0.00017889,2]
[365032034,1749416940027,-500.0,0.00017889,2]
[365032035,1749416940055,-500.0,0.00017889,2]
[365032036,1749416940083,-500.0,0.00017889,2]
[365032037,1749416940110,-151.0,0.00017889,2]
[365032038,1749416940140,-151.0,0.00017889,2]
[365032039,1749416940167,-4161.967447,0.00017889,2]
[365032040,1749416940195,-4161.967447,0.00017889,2]
[365032041,1749416940224,-151.0,0.00017889,2]
[365032042,1749416940251,-500.0,0.00017889,2]
[365032043,1749416940277,-500.0,0.00017889,2]
[365032044,1749416940304,-244.138632,0.00017889,2]
[365032045,1749416940331,-500.0,0.00017889,2]
[365032046,1749416940358,-500.0,0.00017889,2]
[365032047,1749416940384,-500.0,0.00017889,2]
[365032048,1749416940410,-500.0,0.00017889,2]
[365032049,1749416940436,-500.0,0.00017889,2]
[365032050,1749416940462,-500.0,0.00017889,2]
[365032051,1749416940488,-500.0,0.00017889,2]
[365032052,1749416940516,-500.0,0.00017889,2]
[365032053,1749416940541,-500.0,0.00017889,2]
[365032054,1749416940568,-500.0,0.00017889,2]
[365032055,1749416940594,-500.0,0.00017889,2]
[365032056,1749416940619,-203.61104592,0.00017889,2]
[365032057,1749416940661,-296.38895408,0.00017889,2]
[365032058,1749416940686,-500.0,0.00017889,2]
[365032059,1749416940710,-500.0,0.00017889,2]
[365032060,1749416940735,-500.0,0.00017889,2]
[365032061,1749416940760,-500.0,0.00017889,2]
[365032062,1749416940785,-500.0,0.00017889,2]
[365032063,1749416940809,-500.0,0.00017889,2]
[365032064,1749416940833,-500.0,0.00017889,2]
[365032065,1749416940857,-500.0,0.00017889,2]
[365032066,1749416940882,-500.0,0.00017889,2]
[365032067,1749416940907,-500.0,0.00017889,2]
[365032068,1749416940933,-500.0,0.00017889,2]
[365032069,1749416940958,-500.0,0.00017889,2]
[365032070,1749416940983,-500.0,0.00017889,2]
[365032071,1749416941291,-500.0,0.00017889,2]
[365032072,1749416941328,-500.0,0.00017889,2]
[365032073,1749416941351,-500.0,0.00017889,2]
[365032074,1749416941372,-500.0,0.00017889,2]
[365032075,1749416941395,-500.0,0.00017889,2]
[365032076,1749416941418,-500.0,0.00017889,2]
[365032077,1749416941441,-500.0,0.00017889,2]
[365032078,1749416941463,-500.0,0.00017889,2]
[365032079,1749416941485,-500.0,0.00017889,2]
[365032080,1749416941510,-500.0,0.00017889,2]
[365032081,1749416941534,-151.0,0.00017889,2]
[365032082,1749416941558,-500.0,0.00017889,2]
[365032083,1749416941581,-500.0,0.00017889,2]
[365032084,1749416941604,-500.0,0.00017889,2]
[365032085,1749416941628,-500.0,0.00017889,2]
[365032086,1749416941652,-500.0,0.00017889,2]
[365032087,1749416941676,-500.0,0.00017889,2]
[365032088,1749416941699,-500.0,0.00017889,2]
[365032089,1749416941723,-500.0,0.00017889,2]
[365032090,1749416941745,-500.0,0.00017889,2]
[365032091,1749416941768,-151.0,0.00017889,2]
[365032092,1749416941792,-151.0,0.00017889,2]
[365032093,1749416941815,-1530.82232797,0.00017892,2]
[365032094,1749416941847,-151.0,0.00017873,2]
[365032095,1749416941869,-4372.47872456,0.00017892,2]
[365032096,1749416941892,-360.012246,0.00017893,2]
[365032097,1749416941917,-360.012246,0.00017893,2]
[365032098,1749416941939,-1985.9032748,0.00017894,2]
[365032099,1749416941962,-11050.80479069,0.00017894,2]
[365032100,1749416941997,-8103.24270921,0.00017894,2]
[365032101,1749416942021,-151.0,0.00017894,2]
[365032102,1749416942045,-151.0,0.00017894,2]
[365032103,1749416942069,-151.0,0.00017894,2]
[365032104,1749416942094,-151.0,0.00017895,2]
[365032105,1749416942118,-4161.967447,0.00017895,2]
[365032106,1749416942143,-4161.967447,0.00017895,2]
[365032107,1749416942168,-151.0,0.00017895,2]
[365032108,1749416942192,-200.0,0.00017895,2]
[365032109,1749416942216,-500.0,0.00017895,2]
[365032110,1749416942240,-150.0,0.00017895,2]
[365032111,1749416942264,-150.0,0.00017895,2]
[365032112,1749416942287,-98.03367884,0.00017895,2]
[365032113,1749416942323,-160.57337152,0.0001788,2]
[365032114,1749416942347,-51.96632116,0.00017895,2]
[365032115,1749416942371,-500.0,0.00017895,2]
[365032116,1749416942394,-150.0,0.00017895,2]
[365032117,1749416942417,-150.0,0.00017895,2]
[365032118,1749416942439,-522.0,0.00017895,2]
[365032119,1749416942462,-533.0,0.00017895,2]
[365032120,1749416942484,-151.0,0.00017898,2]
[365032121,1749416942507,-208.14532,0.00017898,2]
[365032122,1749416942530,-151.0,0.00017898,2]
[365032123,1749416942553,-188.436342,0.00017898,2]
[365032124,1749416942575,-188.436342,0.00017898,2]
[365032125,1749416942601,-188.436342,0.00017898,2]
[365032126,1749416942624,-188.436342,0.00017898,2]
[365032127,1749416942646,-151.0,0.00017898,2]
[365032128,1749416942667,-151.0,0.00017898,2]
[365032129,1749416942690,-151.0,0.00017898,2]
[365032130,1749416942713,-151.0,0.00017898,2]
[365032131,1749416942736,-151.0,0.00017898,2]
[365032132,1749416942760,-151.0,0.00017898,2]
[365032133,1749416942782,-194.093952,0.00017898,2]
[365032134,1749416942806,-234.082302,0.00017898,2]
[365032135,1749416942829,-151.0,0.00017898,2]
[365032136,1749416942851,-151.0,0.00017898,2]
[365032137,1749416942875,-151.0,0.00017898,2]
[365032138,1749416942897,-151.0,0.00017898,2]
[365032139,1749416942923,-270.01631,0.00017898,2]
[365032140,1749416942946,-270.01631,0.00017898,2]
[365032141,1749416942972,-270.01631,0.00017898,2]
[365032142,1749416942994,-270.01631,0.00017898,2]
[365032143,1749416943018,-151.0,0.00017898,2]
[365032144,1749416943042,-151.0,0.00017898,2]
[365032145,1749416943065,-151.0,0.00017898,2]
[365032146,1749416943088,-494.198672,0.00017898,2]
[365032147,1749416943112,-494.198672,0.00017898,2]
[365032148,1749416943135,-494.198672,0.00017898,2]
[365032149,1749416943158,-494.198672,0.00017898,2]
[365032150,1749416943180,-2069.18339999,0.000179,2]
[365032151,1749416943204,-151.0,0.000179,2]
[365032152,1749416943226,-151.0,0.000179,2]
[365032153,1749416943250,-376.0,0.000179,2]
[365032154,1749416943273,-151.0,0.000179,2]
[365032155,1749416943297,-270.01631,0.000179,2]
[365032156,1749416943321,-270.01631,0.000179,2]
[365032157,1749416943344,-768.0,0.000179,2]
[365032158,1749416943367,-151.0,0.000179,2]
[365032159,1749416943391,-494.198672,0.000179,2]
[365032160,1749416943415,-494.198672,0.000179,2]
[365032161,1749416943440,-2000.0,0.000179,6]
[365032162,1749416943464,-237.0,0.000179,2]
[365032163,1749416943488,-360.012246,0.00017901,2]
[365032164,1749416943515,-360.012246,0.00017901,2]
[365032165,1749416943539,-151.0,0.00017901,2]
[365032166,1749416943563,-154.966782,0.00017901,2]
[365032167,1749416943587,-154.966782,0.00017901,2]
[365032168,1749416943611,-151.0,0.00017901,2]
[365032169,1749416943635,-151.0,0.00017901,2]
[365032170,1749416943659,-151.0,0.00017901,2]
[365032171,1749416943682,-151.0,0.00017901,2]
[365032172,1749416943705,-133.17329938,0.00017901,2]
[365032173,1749416943740,-17.82670062,0.00017901,2]
[365032174,1749416943764,-155.176637,0.00017901,2]
[365032175,1749416943925,-155.176637,0.00017901,2]
[365032176,1749416943950,-188.436342,0.00017901,2]
[365032177,1749416943974,-188.436342,0.00017901,2]
[365032178,1749416943998,-241.309174,0.00017901,2]
[365032179,1749416944024,-151.0,0.00017901,2]
[365032180,1749416944047,-151.0,0.00017901,2]
[365032181,1749416944071,-4161.967447,0.00017901,2]
[365032182,1749416944095,-4161.967447,0.00017901,2]
[365032183,1749416944119,-151.0,0.00017901,2]
[365032184,1749416944141,-245.0,0.00017902,2]
[365032185,1749416944164,-151.0,0.00017902,2]
[365032186,1749416944186,-500.0,0.00017905,2]
[365032187,1749416944208,-150.0,0.00017906,2]
[365032188,1749416944231,-150.0,0.00017906,2]
[365032189,1749416944254,-150.0,0.00017906,2]
[365032190,1749416944277,-150.0,0.00017906,2]
[365032191,1749416944299,-154.33,0.00017906,2]
[365032192,1749416944321,-150.0,0.00017906,2]
[365032193,1749416944345,-188.436342,0.00017906,2]
[365032194,1749416944369,-188.436342,0.00017906,2]
[365032195,1749416944391,-4083.0,0.00017906,2]
[365032196,1749416944414,-944.0,0.00017906,2]
[365032197,1749416944437,-1164.0,0.00017906,2]
[365032198,1749416944460,-155.0,0.00017906,2]
[365032199,1749416944482,-33.71187143,0.00017906,2]
[365032200,1749416944522,-184.54055395,0.00017881,2]
[365032201,1749416944546,-602.28812857,0.00017906,2]
[365032202,1749416944569,-802.0,0.00017906,2]
[365032203,1749416944592,-589.0,0.00017906,2]
[365032204,1749416944615,-557.0,0.00017906,2]
[365032205,1749416944638,-926.0,0.00017906,2]
[365032206,1749416944661,-2000.0,0.00017906,2]
[365032207,1749416944685,-1274.0,0.00017906,2]
[365032208,1749416944707,-1255.0,0.00017906,2]
[365032209,1749416944731,-151.0,0.00017906,2]
[365032210,1749416944755,-151.0,0.00017906,2]
[365032211,1749416944779,-151.0,0.00017906,2]
[365032212,1749416944803,-151.0,0.00017906,2]
[365032213,1749416944826,-360.012246,0.0001791,2]
[365032214,1749416944850,-360.012239,0.0001791,2]
[365032215,1749416944872,-154.966782,0.0001791,2]
[365032216,1749416944895,-154.966782,0.0001791,2]
[365032217,1749416944919,-151.0,0.0001791,2]
[365032218,1749416944944,-151.0,0.0001791,2]
[365032219,1749416944967,-177.6714,0.0001791,2]
[365032220,1749416944992,-151.0,0.0001791,2]
[365032221,1749416945016,-151.0,0.0001791,2]
[365032222,1749416945040,-151.0,0.0001791,2]
[365032223,1749416945064,-155.176637,0.0001791,2]
[365032224,1749416945089,-155.176637,0.0001791,2]
[365032225,1749416945111,-155.176637,0.0001791,2]
[365032226,1749416945137,-155.176637,0.0001791,2]
[365032227,1749416945160,-151.0,0.0001791,2]
[365032228,1749416945184,-151.0,0.0001791,2]
[365032229,1749416945207,-151.0,0.0001791,2]
[365032230,1749416945231,-151.0,0.0001791,2]
[365032231,1749416945256,-270.01631,0.0001791,2]
[365032232,1749416945279,-270.01631,0.0001791,2]
[365032233,1749416945303,-494.198672,0.0001791,2]
[365032234,1749416945327,-494.198672,0.0001791,2]
[365032235,1749416945349,-151.0,0.00017922,2]
[365032236,1749416945371,-500.0,0.00017923,2]
[365032237,1749416945395,-250.0,0.00017923,2]
[365032238,1749416945418,-250.0,0.00017923,2]
[365032239,1749416945441,-250.0,0.00017923,2]
[365032240,1749416945463,-500.0,0.00017923,2]
[365032241,1749416945486,-250.0,0.00017923,2]
[365032242,1749416945513,-250.0,0.00017923,2]
[365032243,1749416945536,-522.0,0.00017923,2]
[365032244,1749416945561,-533.0,0.00017923,2]
[365032245,1749416945585,-188.436342,0.00017923,2]
[365032246,1749416945609,-188.436342,0.00017923,2]
[365032247,1749416945633,-394.52287293,0.00017933,2]
[365032248,1749416945658,-219.0,0.00017949,2]
[365032249,1749416945684,-324.2210816,0.00017949,2]
[365032250,1749416945729,-510.08161013,0.00017949,2]
[365032251,1749416945752,-500.0,0.0001795,2]
[365032252,1749416945775,-500.0,0.0001795,2]
[365032253,1749416945828,-522.0,0.0001795,2]
[365032254,1749416945851,-533.0,0.0001795,2]
[365032255,1749416945874,-282.14242332,0.0001797,2]
[365032256,1749416945898,-500.85649628,0.00017973,2]
[365032257,1749416945923,-500.0,0.00017973,2]
[365032258,1749416945949,-500.0,0.00017973,2]
[365032259,1749416945973,-500.0,0.00017973,2]
[365032260,1749416945996,-500.0,0.00017973,2]
[365032261,1749416946019,-500.0,0.00017973,2]
[365032262,1749416946041,-161.91109396,0.00017973,2]
[365032263,1749416946063,-469.85630973,0.00017973,2]
[365032264,1749416946085,-500.0,0.00017973,2]
[365032265,1749416946108,-500.0,0.00017973,2]
[365032266,1749416946131,-500.0,0.00017973,2]
[365032267,1749416946155,-501.67771377,0.00017973,2]
[365032268,1749416946178,-500.0,0.00017973,2]
[365032269,1749416946201,-500.91731703,0.00017973,2]
[365032270,1749416946225,-500.0,0.00017973,2]
[365032271,1749416946247,-502.23712334,0.00017973,2]
[365032272,1749416946270,-151.0,0.00017973,2]
[365032273,1749416946294,-4161.967447,0.00017973,2]
[365032274,1749416946318,-3482.56374749,0.00017973,2]
[365032275,1749416946533,-679.40369951,0.00017973,2]
[365032276,1749416946558,-151.0,0.00017973,2]
[365032277,1749416946583,-500.0,0.00017978,2]
[365032278,1749416946607,-500.0,0.00017978,2]
[365032279,1749416946632,-522.0,0.00017978,2]
[365032280,1749416946655,-533.0,0.00017978,2]
[365032281,1749416946683,-151.0,0.00017978,2]
[365032282,1749416946707,-151.0,0.00017978,2]
[365032283,1749416946732,-200.706452,0.00017978,2]
[365032284,1749416946756,-151.0,0.00017978,2]
[365032285,1749416946779,-151.0,0.00017978,2]
[365032286,1749416946802,-527.72553121,0.00017979,2]
[365032287,1749416946829,-14062.37559933,0.00017979,2]
[365032288,1749416946862,-18280.21128205,0.00017979,2]
[365032289,1749416946889,-18280.21128205,0.00017979,2]
[365032290,1749416946926,-480.0,0.00017881,2]
[365032291,1749416946952,-17800.21128205,0.00017979,2]
[365032292,1749416946992,-18280.21128205,0.00017979,2]
[365032293,1749416947312,-18280.21128205,0.00017979,2]
[365032294,1749416947346,-12523.53066365,0.00017979,2]
[365032295,1749416947369,-5756.6806184,0.00017979,2]
[365032296,1749416947399,-18280.21128205,0.00017979,2]
[365032297,1749416947435,-6471.12505165,0.00017979,2]
[365032298,1749416947457,-4879.2528794,0.0001798,2]
[365032299,1749416947482,-6929.833351,0.0001798,2]
[365032300,1749416947518,-11477.2682823,0.0001798,2]
[365032301,1749416947541,-1253.6046127,0.0001798,2]
[365032302,1749416947565,-154.966782,0.00017991,2]
[365032303,1749416947589,-151.0,0.00017991,2]
[365032304,1749416947615,-151.0,0.00017991,2]
[365032305,1749416947640,-4161.967447,0.00017991,2]
[365032306,1749416947665,-930.40415805,0.00017991,2]
[365032307,1749416947698,-151.0,0.00017882,2]
[365032308,1749416947722,-3231.56328895,0.00017991,2]
[365032309,1749416947748,-151.0,0.00017991,2]
[365032310,1749416947771,-151.0,0.00017991,2]
[365032311,1749416947797,-151.0,0.00017991,2]
[365032312,1749416947820,-14444.6479931,0.00017991,2]
[365032313,1749416947847,-7460.92759889,0.00017991,2]
[365032314,1749416947869,-151.0,0.00017992,2]
[365032315,1749416947893,-500.0,0.00017992,2]
[365032316,1749416947916,-500.0,0.00017992,2]
[365032317,1749416947939,-500.0,0.00017992,2]
[365032318,1749416947965,-500.0,0.00017992,2]
[365032319,1749416947990,-500.0,0.00017992,2]
[365032320,1749416948015,-500.0,0.00017992,2]
[365032321,1749416948039,-500.0,0.00017992,2]
[365032322,1749416948062,-500.0,0.00017992,2]
[365032323,1749416948085,-500.0,0.00017992,2]
[365032324,1749416948108,-500.0,0.00017992,2]
[365032325,1749416948131,-500.0,0.00017992,2]
[365032326,1749416948154,-500.0,0.00017992,2]
[365032327,1749416948176,-500.0,0.00017992,2]
[365032328,1749416948199,-500.0,0.00017992,2]
[365032329,1749416948222,-500.0,0.00017992,2]
[365032330,1749416948248,-500.0,0.00017992,2]
[365032331,1749416948276,-500.0,0.00017992,2]
[365032332,1749416948310,-500.0,0.00017992,2]
[365032333,1749416948334,-151.0,0.00017992,2]
[365032334,1749416948359,-224.738738,0.00017992,2]
[365032335,1749416948383,-155.176637,0.00017992,2]
[365032336,1749416948406,-155.176637,0.00017992,2]
[365032337,1749416948429,-188.436342,0.00017992,2]
[365032338,1749416948452,-188.436342,0.00017992,2]
[365032339,1749416948475,-151.0,0.00017992,2]
[365032340,1749416948508,-151.0,0.00017992,2]
[365032341,1749416948550,-151.0,0.00017992,2]
[365032342,1749416948579,-151.0,0.00017992,2]
[365032343,1749416948606,-1.31898716,0.00017992,2]
[365032344,1749416948637,-268.69732284,0.00017992,2]
[365032345,1749416948663,-270.01631,0.00017992,2]
[365032346,1749416948691,-270.01631,0.00017992,2]
[365032347,1749416948725,-270.01631,0.00017992,2]
[365032348,1749416948752,-151.0,0.00017992,2]
[365032349,1749416948788,-494.198672,0.00017992,2]
[365032350,1749416948816,-494.198672,0.00017992,2]
[365032351,1749416948840,-494.198672,0.00017992,2]
[365032352,1749416949014,-494.198672,0.00017992,2]
[365032353,1749416949039,-151.0,0.00017992,2]
[365032354,1749416949063,-4161.967447,0.00017992,2]
[365032355,1749416949085,-4161.967447,0.00017992,2]
[365032356,1749416949109,-151.0,0.00017992,2]
[365032357,1749416949133,-151.0,0.00017992,2]
[365032358,1749416949157,-151.0,0.00017992,2]
[365032359,1749416949189,151.0,0.00017883,2]
[365032360,1749416949284,300.0,0.00017882,2]
[365032361,1749416949516,151.0,0.00017882,2]
[365032362,1749416949548,243.7984,0.00017883,2]
[365032363,1749416949605,151.0,0.00017882,2]
[365032364,1749416949633,273.330658,0.00017883,2]
[365032365,1749416951316,480.0,0.00017888,2]
[365032366,1749416952856,151.0,0.00017882,2]
[365032367,1749416955569,4244.60638921,0.00017801,2]
[365032368,1749416955599,755.39361079,0.00017801,2]
[365032369,1749416959257,151.0,0.00017882,2]
[365032370,1749416960988,500.0,0.00017923,2]
[365032371,1749416961317,500.0,0.0001795,2]
[365032372,1749416961395,500.0,0.00017978,2]
[365032373,1749416961725,480.0,0.00017881,2]
[365032374,1749416962223,150.715423,0.00017881,2]
[365032375,1749416963611,500.0,0.00017923,2]
[365032376,1749416963995,500.0,0.0001795,2]
[365032377,1749416964184,500.0,0.00017978,2]
[365032378,1749416965863,1112.5,0.00017881,2]
[365032379,1749416971060,400.0,0.00015506,2]
[365032380,1749416971417,244.544592,0.00017882,2]
[365032381,1749416975975,151.0,0.00017882,2]
[365032382,1749416976363,151.0,0.00017889,2]
[365032383,1749416976821,151.0,0.00017894,2]
[365032384,1749416977265,151.0,0.00017906,2]
[365032385,1749416977636,151.0,0.00017978,2]
[365032386,1749416978009,151.0,0.00017991,2]
[365032387,1749416978137,1050.01,0.00017888,2]
[365032388,1749416978451,151.0,0.00017992,2]
[365032389,1749416979327,480.0,0.00017881,2]
[365032390,1749416979822,151.0,0.00017882,2]
[365032391,1749416980129,198.601378,0.00017889,2]
[365032392,1749416980901,151.0,0.00017882,2]
[365032393,1749416981212,151.0,0.00017889,2]
[365032394,1749416981517,151.0,0.00017894,2]
[365032395,1749416981818,151.0,0.00017906,2]
[365032396,1749416982126,151.0,0.00017978,2]
[365032397,1749416982439,176.059828,0.00017991,2]
[365032398,1749416983104,480.0,0.00017881,2]
[365032399,1749416984015,7638.38645026,0.00017938,2]
[365032400,1749416984039,8696.18084904,0.00017938,2]
[365032401,1749416985038,526.53,0.00017881,2]
[365032402,1749416994779,1929.7127921,0.00017988,2]
[365032403,1749417001069,480.0,0.00017881,2]
[365032404,1749417001971,1200.0,0.00017999,2]
[365032405,1749417004194,161.99,0.00017116,2]
[365032406,1749417005040,841.0,0.00017889,2]
[365032407,1749417012904,883.0,0.00017907,2]
[365032408,1749417013417,480.0,0.00017888,2]
[365032409,1749417013956,480.0,0.00017888,2]
[365032410,1749417015774,592.68,0.00017881,2]
[365032411,1749417016255,480.0,0.00017881,2]
[365032412,1749417016854,1514.56,0.00017888,2]
[365032413,1749417018786,14.55764091,0.00017907,2]
[365032414,1749417018812,513.47235909,0.00017907,2]
[365032415,1749417021223,17766.73892296,0.00017988,2]
[365032416,1749417032021,-1046.67,0.00017881,2]
[365032417,1749417032031,-480.0,0.00017881,2]
[365032418,1749417032041,-337.89664616,0.00017881,2]
[365032419,1749417032053,-142.10335384,0.00017881,2]
[365032420,1749417032063,-155.0,0.00017907,2]
[365032421,1749417032072,-230.81374677,0.00017938,2]
[365032422,1749417032082,-20.55976285,0.00017988,2]
[365032423,1749417032093,-269.652,0.00017988,2]
[365032424,1749417032104,-718.30226286,0.00017988,2]
[365032425,1749417032121,-1069.85932377,0.00017988,2]
[365032426,1749417032132,-20960.88892239,0.00017988,2]
[365032427,1749417032148,-2846.19006919,0.00017988,2]
[365032428,1749417032159,-598.90419328,0.00017988,2]
[365032429,1749417032171,-11760.26009861,0.00017988,2]
[365032430,1749417032182,-268.61,0.00017988,2]
[365032431,1749417032195,-14954.34442709,0.00017988,2]
[365032432,1749417032206,-770.43475231,0.00018,2]
[365032433,1749417032223,-469.371,0.00018,2]
[365032434,1749417032237,-588.13502423,0.00018,2]
[365032435,1749417032253,-5363.81628104,0.00018,2]
[365032436,1749417032306,-1204.16977347,0.00018,2]
[365032965,1749417037982,-480.0,0.00017888,2]
[365032967,1749417037992,-4083.0,0.00017907,2]
[365032969,1749417038002,-690.018,0.00017907,2]
[365032971,1749417038012,-416.31558187,0.00017999,2]
[365032973,1749417038022,-521.85479042,0.00017999,2]
[365032975,1749417038032,-22090.29759866,0.00018,2]
[365032977,1749417038042,-150.0,0.00018,2]
[365032979,1749417038051,-197.96159016,0.00018,2]
[365032981,1749417038060,-151.0,0.00018,2]
[365032983,1749417038071,-454.71,0.00018,2]
[365032985,1749417038080,-151.0,0.00018,2]
[365032987,1749417038089,-270.01631,0.00018,2]
[365032989,1749417038099,-152.02501104,0.00018,2]
[365032991,1749417038108,-156.06294046,0.00018,2]
[365032993,1749417038118,-270.01631,0.00018,2]
[365032995,1749417038131,-150.0,0.00018,2]
[365032997,1749417038140,-152.23576551,0.00018,2]
[365032999,1749417038150,-150.0,0.00018,2]
[365033001,1749417038160,-150.0,0.00018,2]
[365033003,1749417038169,-150.0,0.00018,2]
[365033005,1749417038179,-150.0,0.00018,2]
[365033007,1749417038188,-150.0,0.00018,2]
[365033009,1749417038198,-150.0,0.00018,2]
[365033011,1749417038207,-150.0,0.00018,2]
[365033013,1749417038217,-150.0,0.00018,2]
[365033015,1749417038226,-150.0,0.00018,2]
[365033017,1749417038236,-283.120914,0.00018,2]
[365033019,1749417038246,-494.198672,0.00018,2]
[365033021,1749417038256,-494.198672,0.00018,2]
[365033023,1749417038265,-151.0,0.00018,2]
[365033025,1749417038275,-151.0,0.00018,2]
[365033027,1749417038285,-109.49525451,0.00018,2]
[365033029,1749417038297,-41.50474549,0.00018,2]
[365033031,1749417038307,-151.0,0.00018,2]
[365033033,1749417038316,-453.44258151,0.00018,2]
[365033035,1749417038327,-709.73741849,0.00018,2]
[365033037,1749417038337,-163.27,0.00018,2]
[365033039,1749417038346,-150.0,0.00018,2]
[365033041,1749417038356,-7330.38277129,0.00018,2]
[365033046,1749417038387,-0.00470838,0.00018,2]
[365033048,1749417038399,-1228.37139027,0.00018,2]
[365033050,1749417038408,-151.0,0.00018,2]
[365033052,1749417038418,-151.0,0.00018,2]
[365033054,1749417038427,-367.345706,0.00018,2]
[365033056,1749417038437,-240.20430933,0.00018,2]
[365033058,1749417038449,-1284.49380121,0.00018,2]
[365033061,1749417038466,-1799.94227,0.00018,2]
[365033131,1749417043131,-284.74620952,0.00018,2]
[365033327,1749417115431,-150.0,0.00017105,7]
[365033328,1749417115458,-1634.59,0.00017106,2]
[365033329,1749417115483,-245.35493621,0.0001783,2]
[365033330,1749417115509,-586.51,0.00017881,2]
[365033331,1749417115535,-150.715423,0.00017881,2]
[365033332,1749417115560,-968.86,0.00017881,2]
[365033333,1749417115590,-730.08,0.00017881,2]
[365033334,1749417115615,-480.0,0.00017881,2]
[365033335,1749417115640,-480.0,0.00017881,2]
[365033336,1749417115667,-480.0,0.00017881,2]
[365033337,1749417115892,-480.0,0.00017881,2]
[365033338,1749417115915,-480.0,0.00017882,2]
[365033339,1749417115938,-480.0,0.00017888,2]
[365033340,1749417115966,-645.46,0.00017888,2]
[365033341,1749417115990,-480.0,0.00017888,2]
[365033342,1749417116013,-480.0,0.00017888,2]
[365033343,1749417116037,-480.0,0.00017888,2]
[365033344,1749417116063,-824.8398972,0.00017888,2]
[365033345,1749417116099,-6006.2001028,0.00017888,2]
[365033346,1749417116125,-4250.21015361,0.00017991,2]
[365033347,1749417116163,-480.0,0.00017888,2]
[365033348,1749417116189,-4899.42700089,0.00017991,2]
[365033349,1749417116214,-300.0,0.00017999,2]
[365033350,1749417116239,-300.0,0.00017999,2]
[365033351,1749417121070,334.71,0.00017888,2]
[365033352,1749417122280,480.0,0.00017888,2]
[365033353,1749417126169,1957.856,0.00017989,2]
[365033354,1749417129318,1504.41725552,0.00017992,2]
[365033355,1749417129341,10256.41025641,0.00017992,2]
[365033356,1749417129365,10256.41025641,0.00017992,2]
[365033357,1749417129387,10256.41025641,0.00017992,2]
[365033358,1749417129413,2254.34876795,0.00017992,2]
[365033359,1749417145155,329.0,0.00017113,2]
[365033360,1749417148769,4431.47,0.00017113,2]
[365033361,1749417150353,207.4,0.00017989,2]
[365033362,1749417157295,150.715423,0.0001764,2]
[365033363,1749417161224,2883.47606546,0.00017888,2]
[365033364,1749417161249,10256.41025641,0.00017888,2]
[365033365,1749417161274,3235.84367813,0.00017888,2]
[365033366,1749417169667,480.0,0.00017888,2]
[365033367,1749417176390,480.0,0.00017888,2]
[365033368,1749417182426,1391.92,0.00017888,2]